Department Family,Entity,Date Paid,Expense Type,Expense Area,Supplier Name,Transaction Reference,    Total    
Department of Health,Chelsea & Westminster NHS Foundation Trust,01/11/2023,General Maintenance Contracts,Nicu/Scbu,Nhs Supply Chain Maintenance (201),2124004915B,"26,141.94"
Department of Health,Chelsea & Westminster NHS Foundation Trust,01/11/2023,Services From Non Nhs Org,General Surgery,Healthshare Diagnostics Ltd,1360517,"63,054.73"
Department of Health,Chelsea & Westminster NHS Foundation Trust,01/11/2023,Drugs,Chelsea Pharmacy,Alliance Healthcare (Distribution ) Ltd,A39S54444,"42,479.92"
Department of Health,Chelsea & Westminster NHS Foundation Trust,01/11/2023,Soft Service Contract,Trust-wide,Healthcare Business Solutions (Uk) Ltd,3097,"46,260.00"
Department of Health,Chelsea & Westminster NHS Foundation Trust,01/11/2023,Soft Service Contract,Trust-wide,Healthcare Business Solutions (Uk) Ltd,3096,"49,500.00"
Department of Health,Chelsea & Westminster NHS Foundation Trust,02/11/2023,Refurbishment,Facilities Directorate,Ensigna Construction Ltd,6079,"87,820.78"
Department of Health,Chelsea & Westminster NHS Foundation Trust,02/11/2023,Drugs,Hiv Drugs - Herts,West Hertfordshire Hospitals Nhs Trust,0000277740,"300,680.44"
Department of Health,Chelsea & Westminster NHS Foundation Trust,02/11/2023,General Computer Software,Quality & Clinical Gov.,Datix Ltd,IN-RLDUK-001462,"45,081.58"
Department of Health,Chelsea & Westminster NHS Foundation Trust,02/11/2023,M.S.S.E. - Other,Chelsea Site,The Doctors Laboratory,SI1627118,"110,477.85"
Department of Health,Chelsea & Westminster NHS Foundation Trust,02/11/2023,M.S.S.E. - Other,Chelsea Site,The Doctors Laboratory,SI1645888,"122,187.34"
Department of Health,Chelsea & Westminster NHS Foundation Trust,02/11/2023,Other Printing,I.T Management,Hp Inc. Uk Limited,8211021,"25,834.67"
Department of Health,Chelsea & Westminster NHS Foundation Trust,02/11/2023,Rent Rates & Service Charge,Mass Vaccination Roving,Quality Trusted Solutions,64780631,"28,818.46"
Department of Health,Chelsea & Westminster NHS Foundation Trust,02/11/2023,Drugs,Chelsea Pharmacy,Alliance Healthcare (Distribution ) Ltd,A3A456193,"26,180.63"
Department of Health,Chelsea & Westminster NHS Foundation Trust,02/11/2023,Drugs,Chelsea Pharmacy,Alloga Uk Limited,SIN200015282,"36,000.00"
Department of Health,Chelsea & Westminster NHS Foundation Trust,02/11/2023,Drugs,Chelsea Pharmacy,Csl Behring Uk Ltd,994060700,"31,307.20"
Department of Health,Chelsea & Westminster NHS Foundation Trust,02/11/2023,Drugs,Chelsea Pharmacy,Janssen-Cilag Ltd,,"49,688.40"
Department of Health,Chelsea & Westminster NHS Foundation Trust,02/11/2023,Drugs,Chelsea Pharmacy,Mawdsley- Brooks & Co Ltd,540180,"42,357.00"
Department of Health,Chelsea & Westminster NHS Foundation Trust,02/11/2023,Drugs,West Middlesex Pharmacy,Roche Products Ltd,1322303740,"53,220.53"
Department of Health,Chelsea & Westminster NHS Foundation Trust,02/11/2023,Clinical Supplies,Divisional Areas,Nhs Supply Chain Roarp (101),1124182706,"136,701.35"
Department of Health,Chelsea & Westminster NHS Foundation Trust,02/11/2023,Clinical Supplies,Divisional Areas,Nhs Supply Chain Roarp (101),1124186108,"74,536.40"
Department of Health,Chelsea & Westminster NHS Foundation Trust,02/11/2023,Clinical Supplies,Divisional Areas,Nhs Supply Chain Roarp (101),1124182629,"97,956.41"
Department of Health,Chelsea & Westminster NHS Foundation Trust,02/11/2023,Clinical Supplies,Divisional Areas,Nhs Supply Chain Roarp (101),1124186068,"38,729.74"
Department of Health,Chelsea & Westminster NHS Foundation Trust,02/11/2023,Managed Service Contract,Cardiac Cath Lab,Medtronic Limited,1205642973,"152,636.18"
Department of Health,Chelsea & Westminster NHS Foundation Trust,02/11/2023,Sterile Services Contract,Sterile Services Dept,Ihss Limited,IHSN102717,"53,387.38"
Department of Health,Chelsea & Westminster NHS Foundation Trust,02/11/2023,Specialty Registrar Ft (Str1),Hee Income,Royal Free London Nhs Foundation Trust,I0222412,"214,607.86"
Department of Health,Chelsea & Westminster NHS Foundation Trust,07/11/2023,Building Expenditure,Marjory Warren Ward,Logan Construction (S.E) Ltd,5887,"140,160.00"
Department of Health,Chelsea & Westminster NHS Foundation Trust,07/11/2023,Computer Maintenance Contracts,Radiology,Sectra Ltd,SIN005959,"109,997.10"
Department of Health,Chelsea & Westminster NHS Foundation Trust,07/11/2023,General Computer Software,Radiology Department,Sectra Ltd,SIN005960,"70,005.60"
Department of Health,Chelsea & Westminster NHS Foundation Trust,07/11/2023,Telephone Rental-Computer,Trust-wide,Bt Payment Services Ltd,3936770M03701FG,"50,399.38"
Department of Health,Chelsea & Westminster NHS Foundation Trust,07/11/2023,Telephones - Private Circuits,Trust-wide,Imperial College Healthcare Nhs Trust,H0319937,"60,947.57"
Department of Health,Chelsea & Westminster NHS Foundation Trust,09/11/2023,Agency Nurse - Band 5,Chelsea Site,Care Providers Ltd,CH5431,"140,848.94"
Department of Health,Chelsea & Westminster NHS Foundation Trust,09/11/2023,Building Expenditure,Chelsea Site,Jca Engineering Limited,INV37129,"37,479.60"
Department of Health,Chelsea & Westminster NHS Foundation Trust,09/11/2023,Building Expenditure,Burns Unit,Jca Engineering Limited,INV37195,"64,410.00"
Department of Health,Chelsea & Westminster NHS Foundation Trust,09/11/2023,General Maintenance Contracts,Trust-wide,Jca Engineering Limited,INV-N10168,"465,908.04"
Department of Health,Chelsea & Westminster NHS Foundation Trust,09/11/2023,Transport ,Trust-wide,Hats Group Ltd,0000225666,"170,873.16"
Department of Health,Chelsea & Westminster NHS Foundation Trust,09/11/2023,Transport ,Trust-wide,Hats Group Ltd,0000225667,"36,745.52"
Department of Health,Chelsea & Westminster NHS Foundation Trust,09/11/2023,Transport ,Trust-wide,Hats Group Ltd,0000225668,"70,352.16"
Department of Health,Chelsea & Westminster NHS Foundation Trust,09/11/2023,Services From N.H.S. Bodies,Financial Planning Team,The Hillingdon Hospitals Nhs Foundation Trust,N0108378,"55,015.40"
Department of Health,Chelsea & Westminster NHS Foundation Trust,09/11/2023,Drugs,Chelsea Pharmacy,Bayer Plc,824C523832,"45,622.80"
Department of Health,Chelsea & Westminster NHS Foundation Trust,09/11/2023,Drugs,Chelsea Pharmacy,Gilead Sciences Ltd,4410258599,"60,312.00"
Department of Health,Chelsea & Westminster NHS Foundation Trust,09/11/2023,Drugs,West Middlesex Pharmacy,Alloga Uk Limited,SIN200022770,"36,000.00"
Department of Health,Chelsea & Westminster NHS Foundation Trust,09/11/2023,Clinical Supplies,Divisional Areas,Nhs Supply Chain Roarp (101),1124187348,"86,398.38"
Department of Health,Chelsea & Westminster NHS Foundation Trust,09/11/2023,Clinical Supplies,Divisional Areas,Nhs Supply Chain Roarp (101),1124189280,"126,865.81"
Department of Health,Chelsea & Westminster NHS Foundation Trust,09/11/2023,Clinical Supplies,Divisional Areas,Nhs Supply Chain Roarp (101),1124193266,"46,707.59"
Department of Health,Chelsea & Westminster NHS Foundation Trust,09/11/2023,Postage,Clin Admin Management Team,Synertec Ltd,QS361916,"25,998.13"
Department of Health,Chelsea & Westminster NHS Foundation Trust,09/11/2023,Gas,Trust-wide,Total Energies Gas & Power Limited,317092033/23,"115,554.44"
Department of Health,Chelsea & Westminster NHS Foundation Trust,09/11/2023,Dispensing Fee,Pharmacy Outpatients,Cw Medicines Ltd,N0056020,"102,712.02"
Department of Health,Chelsea & Westminster NHS Foundation Trust,14/11/2023,Services From Non Nhs Org,Urgent Treatment Centre,London Central & West Unsheduled Care Collabo,5378,"556,079.80"
Department of Health,Chelsea & Westminster NHS Foundation Trust,14/11/2023,Drugs,Chelsea Pharmacy,Alliance Healthcare (Distribution ) Ltd,A3AA55325,"25,747.04"
Department of Health,Chelsea & Westminster NHS Foundation Trust,14/11/2023,Soft Services,Trust-wide,Iss Mediclean Limited,SI3569386,"43,818.61"
Department of Health,Chelsea & Westminster NHS Foundation Trust,16/11/2023,Agency Nurse - Band 5,Chelsea Site,Care Providers Ltd,CH5183,"130,704.45"
Department of Health,Chelsea & Westminster NHS Foundation Trust,16/11/2023,Building Expenditure,Endoscopy,Jca Engineering Limited,INV37259,"119,986.80"
Department of Health,Chelsea & Westminster NHS Foundation Trust,16/11/2023,Computer Maintenance Contracts,Womens Management (Cw),K2 Medical Systems Ltd,9542,"194,760.00"
Department of Health,Chelsea & Westminster NHS Foundation Trust,16/11/2023,Services From Non Nhs Org,Service Level Agreements,The Royal Borough Of Kensington And Chelsea,3660088003,"31,103.44"
Department of Health,Chelsea & Westminster NHS Foundation Trust,16/11/2023,Drugs,Chelsea Pharmacy,Alliance Healthcare (Distribution ) Ltd,A3AC54894,"28,429.23"
Department of Health,Chelsea & Westminster NHS Foundation Trust,16/11/2023,Drugs,Chelsea Pharmacy,Alloga Uk Limited,SIN200030203,"36,000.00"
Department of Health,Chelsea & Westminster NHS Foundation Trust,16/11/2023,Drugs,Chelsea Pharmacy,Bristol Myers Squibb,100730716,"42,043.50"
Department of Health,Chelsea & Westminster NHS Foundation Trust,16/11/2023,Drugs,West Middlesex Pharmacy,Csl Behring Uk Ltd,994061158,"61,296.26"
Department of Health,Chelsea & Westminster NHS Foundation Trust,16/11/2023,Drugs,West Middlesex Pharmacy,Roche Products Ltd,1322305032,"29,124.00"
Department of Health,Chelsea & Westminster NHS Foundation Trust,16/11/2023,Clinical Supplies,Divisional Areas,Nhs Supply Chain Roarp (101),1124196065,"149,785.09"
Department of Health,Chelsea & Westminster NHS Foundation Trust,16/11/2023,Clinical Supplies,Divisional Areas,Nhs Supply Chain Roarp (101),1124194523,"90,727.36"
Department of Health,Chelsea & Westminster NHS Foundation Trust,16/11/2023,Clinical Supplies,Divisional Areas,Nhs Supply Chain Roarp (101),1124200531,"53,947.76"
Department of Health,Chelsea & Westminster NHS Foundation Trust,16/11/2023,Clinical Supplies,Divisional Areas,Nhs Supply Chain Roarp (101),1124200572,"99,827.79"
Department of Health,Chelsea & Westminster NHS Foundation Trust,16/11/2023,Transport ,Trust-wide,Hats Group Ltd,0000225907,"26,419.94"
Department of Health,Chelsea & Westminster NHS Foundation Trust,16/11/2023,Recharges � Pay and non-pay costs,General Surgery,Imperial College London,40045054,"28,438.12"
Department of Health,Chelsea & Westminster NHS Foundation Trust,16/11/2023,I.T. Expenditure,Pharmacy Department,Vodafone Limited,104814393,12.12
Department of Health,Chelsea & Westminster NHS Foundation Trust,16/11/2023,I.T. Expenditure,Corporate Governance,Vodafone Limited,104814393,4.04
Department of Health,Chelsea & Westminster NHS Foundation Trust,16/11/2023,Drugs,Chelsea Pharmacy,Cw Medicines Ltd,N0056543,"1,228,747.08"
Department of Health,Chelsea & Westminster NHS Foundation Trust,16/11/2023,Recharges � Pay and non-pay costs,Clarhc Office,Imperial College London,10201716,"62,414.36"
Department of Health,Chelsea & Westminster NHS Foundation Trust,16/11/2023,Recharges � Pay and non-pay costs,Improvement Science & Quality ,Imperial College London,10200865,"31,237.77"
Department of Health,Chelsea & Westminster NHS Foundation Trust,16/11/2023,Nw London Pathology Contract,Trust-wide,North West London Pathology,H0319347,"31,144.00"
Department of Health,Chelsea & Westminster NHS Foundation Trust,16/11/2023,Nw London Pathology Contract,Trust-wide,North West London Pathology,H0320159,"3,246,031.00"
Department of Health,Chelsea & Westminster NHS Foundation Trust,16/11/2023,Nw London Pathology Contract,Trust-wide,North West London Pathology,H0320161,"31,144.00"
Department of Health,Chelsea & Westminster NHS Foundation Trust,16/11/2023,Nw London Pathology Contract,Trust-wide,North West London Pathology,H0320437,"-270,626.00"
Department of Health,Chelsea & Westminster NHS Foundation Trust,16/11/2023,Dispensing Fee,Pharmacy Outpatients,Cw Medicines Ltd,N0056548,"104,526.03"
Department of Health,Chelsea & Westminster NHS Foundation Trust,21/11/2023,Building Expenditure,Marjory Warren Ward,Bywest Ltd,INV000125,"588,504.85"
Department of Health,Chelsea & Westminster NHS Foundation Trust,21/11/2023,General Maintenance Contracts,Decontamination Services Dept,Nhs Supply Chain Maintenance (201),2124005396,"29,707.20"
Department of Health,Chelsea & Westminster NHS Foundation Trust,21/11/2023,I.T. Expenditure,Trust-wide,Cdw Limited,UKSI04126012,"88,305.54"
Department of Health,Chelsea & Westminster NHS Foundation Trust,21/11/2023,I.T. Expenditure,Trust-wide,Softcat Ltd,INVUK1059314,"57,689.78"
Department of Health,Chelsea & Westminster NHS Foundation Trust,21/11/2023,Services From Non Nhs Org,General Surgery,Healthshare Diagnostics Ltd,1360583,"39,120.58"
Department of Health,Chelsea & Westminster NHS Foundation Trust,21/11/2023,Drugs,Chelsea Pharmacy,Gilead Sciences Ltd,4410259386,"26,755.20"
Department of Health,Chelsea & Westminster NHS Foundation Trust,21/11/2023,Drugs - Endoscopy Unit,Endoscopy Cw,Laborie Medical Technologies Uk,90504558,"26,558.40"
Department of Health,Chelsea & Westminster NHS Foundation Trust,21/11/2023,Recharges � Pay and non-pay costs,Clarhc Office,Imperial College London,10201573,"355,219.96"
Department of Health,Chelsea & Westminster NHS Foundation Trust,21/11/2023,Clinic Space,Paediatric Management,Psicon Ltd,10BCWOCT23,"141,000.00"
Department of Health,Chelsea & Westminster NHS Foundation Trust,23/11/2023,Rates & Council Tax,Dean Street Clinic,Westminster City Council,402284754NOV23,"29,260.00"
Department of Health,Chelsea & Westminster NHS Foundation Trust,23/11/2023,Rates & Council Tax,Chelsea Site,The Royal Borough Of Kensington And Chelsea,629848928NOV23,"248,444.00"
Department of Health,Chelsea & Westminster NHS Foundation Trust,23/11/2023,Rates & Council Tax,West Middlesex site,London Borough Of Hounslow,921515548ANOV23,"106,400.00"
Department of Health,Chelsea & Westminster NHS Foundation Trust,23/11/2023,Staff Flow Central Account,Trust-wide,Liaison Financial Services Ltd,34/2023-24,"73,700.10"
Department of Health,Chelsea & Westminster NHS Foundation Trust,23/11/2023,Staff Flow Central Account,Trust-wide,Liaison Financial Services Ltd,33/2023-24,"69,329.35"
Department of Health,Chelsea & Westminster NHS Foundation Trust,23/11/2023,Staff Flow Central Account,Trust-wide,Liaison Financial Services Ltd,32/2023-24,"65,830.74"
Department of Health,Chelsea & Westminster NHS Foundation Trust,23/11/2023,Staff Flow Central Account,Trust-wide,Liaison Financial Services Ltd,31/2023-24,"54,799.90"
Department of Health,Chelsea & Westminster NHS Foundation Trust,23/11/2023,Insurance Contributions,Trust-wide,Nhs Resolution C/O Nhs Litigation Authority,SICX414028,"4,103,291.00"
Department of Health,Chelsea & Westminster NHS Foundation Trust,23/11/2023,Drugs,Chelsea Pharmacy,Cw Medicines Ltd,N0056546,"1,360,145.48"
Department of Health,Chelsea & Westminster NHS Foundation Trust,24/11/2023,Agency Nurse - Band 5,Chelsea Site,Last Call Healthcare Ltd,INV-CWH-41RE,"35,963.70"
Department of Health,Chelsea & Westminster NHS Foundation Trust,24/11/2023,Building Expenditure,WestMid,Bywest Ltd,INV000124,"123,855.48"
Department of Health,Chelsea & Westminster NHS Foundation Trust,24/11/2023,Refurbishment,Chelsea Site,Guideline Lift Services Ltd,C8005635,"86,684.58"
Department of Health,Chelsea & Westminster NHS Foundation Trust,24/11/2023,Building Expenditure,Marjory Warren Ward,Logan Construction (S.E) Ltd,5899,"179,860.80"
Department of Health,Chelsea & Westminster NHS Foundation Trust,24/11/2023,Building Expenditure,Marjory Warren Ward,Portakabin Limited,901011963,"29,453.11"
Department of Health,Chelsea & Westminster NHS Foundation Trust,24/11/2023,Refurbishment,CW Mezzanine Office,Trail Group Limited,6717,"328,900.80"
Department of Health,Chelsea & Westminster NHS Foundation Trust,24/11/2023,Building Expenditure,Facilities Directorate,Trail Group Limited,6719,"89,113.20"
Department of Health,Chelsea & Westminster NHS Foundation Trust,24/11/2023,Computer Maintenance Contracts,Womens Management (Cw),Health Net Connections Ltd,INV-24589,"41,204.89"
Department of Health,Chelsea & Westminster NHS Foundation Trust,24/11/2023,Electricty,Trust-wide,Edf Energy 1 Ltd,000017130541,"583,008.07"
Department of Health,Chelsea & Westminster NHS Foundation Trust,24/11/2023,General Computer Software,I.T Management,Exponential-E Limited,0000782710,"33,482.70"
Department of Health,Chelsea & Westminster NHS Foundation Trust,24/11/2023,General Computer Software,Information,Catalyst Bi Limited,INV7437,"79,167.28"
Department of Health,Chelsea & Westminster NHS Foundation Trust,24/11/2023,General Maintenance Contracts,Decontamination Services Dept,Nhs Supply Chain Maintenance (201),2124005495,"48,002.76"
Department of Health,Chelsea & Westminster NHS Foundation Trust,24/11/2023,M.S.S.E. - Routine Purchases,Organisational Learning & Deve,Cirrus Software (Uk) Ltd,INV-31143,"25,500.00"
Department of Health,Chelsea & Westminster NHS Foundation Trust,24/11/2023,M.S.S.E. - Routine Purchases,Director Of Nursing & Patient ,Healthcare Communications Uk Ltd,INVHEA00005257,"25,399.38"
Department of Health,Chelsea & Westminster NHS Foundation Trust,24/11/2023,Other Consultancy,Procurement,Lifecycle Managment Group Limited,12244,"44,994.10"
Department of Health,Chelsea & Westminster NHS Foundation Trust,24/11/2023,Recruitment Expenses,Director Of Nursing,Medox Paramedical Ltd T/ S  Drake Medox,0305147,"40,320.00"
Department of Health,Chelsea & Westminster NHS Foundation Trust,24/11/2023,Service Charge - Core Pfi,Pfi Unitary Payment,Bywest Ltd,INV000128,"2,100,059.45"
Department of Health,Chelsea & Westminster NHS Foundation Trust,24/11/2023,Services From - Foundation Tru,Occupational Health,Central And North West London Nhs Ft,53511841,"709,182.00"
Department of Health,Chelsea & Westminster NHS Foundation Trust,24/11/2023,Services From N.H.S. Bodies,Main Pharmacy,Imperial College Healthcare Nhs Trust,H0320796,"44,490.50"
Department of Health,Chelsea & Westminster NHS Foundation Trust,24/11/2023,Drugs,Chelsea Pharmacy,Alliance Healthcare (Distribution ) Ltd,A3AR53552,"25,485.57"
Department of Health,Chelsea & Westminster NHS Foundation Trust,24/11/2023,Drugs,Chelsea Pharmacy,Baxter Healthcare Ltd,23255818,"39,652.93"
Department of Health,Chelsea & Westminster NHS Foundation Trust,24/11/2023,Drugs,Chelsea Pharmacy,Alliance Healthcare (Distribution ) Ltd,A3AP54301,"47,806.70"
Department of Health,Chelsea & Westminster NHS Foundation Trust,24/11/2023,Drugs,Chelsea Pharmacy,Alliance Healthcare (Distribution ) Ltd,A3B255499,"25,727.90"
Department of Health,Chelsea & Westminster NHS Foundation Trust,24/11/2023,Drugs,Chelsea Pharmacy,Alloga Uk Limited,SIN200043077,"36,000.00"
Department of Health,Chelsea & Westminster NHS Foundation Trust,24/11/2023,Drugs,Chelsea Pharmacy,Baxter Healthcare Ltd,23287759,"60,038.10"
Department of Health,Chelsea & Westminster NHS Foundation Trust,24/11/2023,Drugs,Chelsea Pharmacy,Csl Behring Uk Ltd,994061590,"42,841.38"
Department of Health,Chelsea & Westminster NHS Foundation Trust,24/11/2023,Drugs,Chelsea Pharmacy,Gilead Sciences Ltd,4410260002,"40,920.00"
Department of Health,Chelsea & Westminster NHS Foundation Trust,24/11/2023,Drugs,Chelsea Pharmacy,Mawdsley- Brooks & Co Ltd,544387,"42,357.00"
Department of Health,Chelsea & Westminster NHS Foundation Trust,24/11/2023,Drugs,West Middlesex Pharmacy,Alloga Uk Limited,SIN200036236,"45,000.00"
Department of Health,Chelsea & Westminster NHS Foundation Trust,24/11/2023,Drugs,West Middlesex Pharmacy,Baxter Healthcare Ltd,23244516,"30,747.62"
Department of Health,Chelsea & Westminster NHS Foundation Trust,24/11/2023,Drugs,West Middlesex Pharmacy,Baxter Healthcare Ltd,23246732,"31,359.90"
Department of Health,Chelsea & Westminster NHS Foundation Trust,24/11/2023,Drugs,West Middlesex Pharmacy,Roche Products Ltd,1322306949,"33,343.20"
Department of Health,Chelsea & Westminster NHS Foundation Trust,24/11/2023,Clinical Supplies,Divisional Areas,Nhs Supply Chain Roarp (101),1124207355,"57,857.73"
Department of Health,Chelsea & Westminster NHS Foundation Trust,24/11/2023,Clinical Supplies,Divisional Areas,Nhs Supply Chain Roarp (101),1124207315,"41,564.95"
Department of Health,Chelsea & Westminster NHS Foundation Trust,24/11/2023,Clinical Supplies,Divisional Areas,Nhs Supply Chain Roarp (101),1124202968,"133,260.37"
Department of Health,Chelsea & Westminster NHS Foundation Trust,24/11/2023,Clinical Supplies,Divisional Areas,Nhs Supply Chain Roarp (101),1124201638,"109,542.75"
Department of Health,Chelsea & Westminster NHS Foundation Trust,24/11/2023,Clinical Supplies,Divisional Areas,Nhs Supply Chain Roarp (101),1124208474,"102,955.99"
Department of Health,Chelsea & Westminster NHS Foundation Trust,24/11/2023,Clinical Supplies,Divisional Areas,Nhs Supply Chain Roarp (101),1124211641,"38,991.05"
Department of Health,Chelsea & Westminster NHS Foundation Trust,24/11/2023,Clinical Supplies,Divisional Areas,Nhs Supply Chain Roarp (101),1124211680,"131,429.40"
Department of Health,Chelsea & Westminster NHS Foundation Trust,24/11/2023,Clinical Supplies,Divisional Areas,Nhs Supply Chain Roarp (101),1124209377,"143,650.98"
Department of Health,Chelsea & Westminster NHS Foundation Trust,24/11/2023,Clinical Supplies,Divisional Areas,Nhs Supply Chain Roarp (101),1124222226,"88,412.80"
Department of Health,Chelsea & Westminster NHS Foundation Trust,24/11/2023,Soft Services,Trust-wide,Iss Mediclean Limited,SI3570485,"2,648,814.59"
Department of Health,Chelsea & Westminster NHS Foundation Trust,24/11/2023,Service Charge - Core Pfi,Pfi Unitary Payment,Bywest Ltd,INV000129,"618,907.72"
Department of Health,Chelsea & Westminster NHS Foundation Trust,24/11/2023,Water,Estate Management Department,Smarta Water Limited,TECB00002324,"40,852.22"
Department of Health,Chelsea & Westminster NHS Foundation Trust,24/11/2023,Water,Estate Management Department,Smarta Water Limited,TECB00002280,"31,604.06"
Department of Health,Chelsea & Westminster NHS Foundation Trust,24/11/2023,Translation Services,Trust-wide,Da Languages Ltd,I0333150,"30,950.45"
Department of Health,Chelsea & Westminster NHS Foundation Trust,24/11/2023,Hire Of Beds,Director Of Nursing,Arjo Uk Ltd,3394325277,"62,959.30"
Department of Health,Chelsea & Westminster NHS Foundation Trust,24/11/2023,Consultant Recharge,Dermatology Management,Healthcare Business Solutions (Uk) Ltd,3213,"61,050.00"
Department of Health,Chelsea & Westminster NHS Foundation Trust,24/11/2023,Postage,Clin Admin Management Team,Synertec Ltd,QS363191,"32,683.76"
Department of Health,Chelsea & Westminster NHS Foundation Trust,24/11/2023,Inpatient and Day Case Activity,Radiology Department,Medica Reporting Ltd (Medica Group),SI108481,"103,873.00"
Department of Health,Chelsea & Westminster NHS Foundation Trust,24/11/2023,Inpatient and Day Case Activity,Radiology Department,Medica Reporting Ltd (Medica Group),SI108507,"88,250.00"
Department of Health,Chelsea & Westminster NHS Foundation Trust,24/11/2023,Equipment Expenditure,Clinical Engineering LG Flr,Alcon Eye Care Uk Ltd,9249562388,"142,275.96"
Department of Health,Chelsea & Westminster NHS Foundation Trust,24/11/2023,Neyber Financial Wellbeing Ben,Trust-wide,Salary Finance Ltd,SD NOVEMBER 2023,"35,763.65"
Department of Health,Chelsea & Westminster NHS Foundation Trust,24/11/2023,Soft Services,Trust-wide,Iss Mediclean Limited,SI3570526,"84,232.25"
Department of Health,Chelsea & Westminster NHS Foundation Trust,24/11/2023,Sterile Services Contract,Sterile Services Dept,Ihss Limited,IHSN103171,"53,387.38"
Department of Health,Chelsea & Westminster NHS Foundation Trust,24/11/2023,Sterile Services Contract,Sterile Services Dept,Ihss Limited,IHSN103086,"68,258.15"
Department of Health,Chelsea & Westminster NHS Foundation Trust,24/11/2023,M.R.I. Scans,Radiology:- Other Scanning,Alliance Medical Limited,AML-221268,"85,680.00"
Department of Health,Chelsea & Westminster NHS Foundation Trust,24/11/2023,Soft Services,Trust-wide,Iss Mediclean Limited,SI3570486,"64,064.16"
